bitfinex-derivatives/quotes_BNBF0:USTF0_20250617
["timestamp","ask_amount","ask_price","bid_price","bid_amount"]
[1750133825335,0.98499309,655.94,655.73,1.243]
[1750133825638,0.98499309,655.93,655.73,1.243]
[1750133825839,0.98499309,655.92,655.73,1.243]
[1750133826133,0.98499309,655.97,655.73,1.243]
[1750133826342,0.98499309,655.96,655.73,1.243]
[1750133826543,0.98499309,655.97,655.73,1.243]
[1750133826743,0.26532176,655.98,655.73,1.243]
[1750133833243,0.26532176,655.98,655.74,1.355]
[1750133836846,0.98419949,656.09,655.74,1.355]
[1750133837147,0.98419949,656.08,655.74,1.355]
[1750133837645,0.2652894,656.09,655.74,1.355]
[1750133837845,0.9841228,656.08,655.74,1.355]
[1750133838047,0.9841228,656.07,655.74,1.355]
[1750133838341,0.9841228,656.08,655.74,1.355]
[1750133838644,0.9841228,656.07,655.74,1.355]
[1750133838846,0.9841228,656.08,655.74,1.355]
[1750133839545,0.9841228,656.08,655.75,1.266]
[1750133840147,0.2652894,656.09,655.75,1.266]
[1750133840750,1.2494122,656.09,655.75,1.266]
[1750133840944,0.2652894,656.09,655.75,1.266]
[1750133841650,1.2494122,656.09,655.75,1.266]
[1750133841846,0.2652894,656.09,655.75,1.266]
[1750133851358,0.98365012,656.08,655.75,1.266]
[1750133851562,0.98365012,656.07,655.75,1.266]
[1750133851856,0.98365012,656.06,655.75,1.266]
[1750133852060,0.2652894,656.09,655.75,1.266]
[1750133852755,0.98365012,656.08,655.75,1.266]
[1750133853160,0.98365012,656.07,655.75,1.266]
[1750133853460,0.98365012,656.06,655.75,1.266]
[1750133853662,0.98365012,656.08,655.75,1.266]
[1750133853957,0.98365012,656.07,655.75,1.266]
[1750133854160,0.98365012,656.06,655.75,1.266]
[1750133854359,0.98365012,656.05,655.75,1.266]
[1750133854562,0.98427858,656.04,655.75,1.266]
[1750133854758,0.98427858,656.03,655.75,1.266]
[1750133854963,0.98427858,656.02,655.75,1.266]
[1750133855265,0.98427858,656.01,655.75,1.266]
[1750133855455,0.98427858,656.0,655.75,1.266]
[1750133855659,0.98427858,655.99,655.75,1.266]
[1750133855858,0.98427858,656.08,655.75,1.266]
[1750133856063,0.98427858,656.07,655.75,1.266]
[1750133856261,0.98427858,656.06,655.75,1.266]
[1750133856557,0.98427858,656.05,655.74,1.355]
[1750133856858,0.98427858,656.04,655.74,1.355]
[1750133857062,0.98427858,656.03,655.74,1.355]
[1750133857262,0.98427858,656.02,655.74,1.355]
[1750133857462,0.98427858,656.01,655.74,1.355]
[1750133857655,0.98427858,656.0,655.74,1.355]
[1750133857859,0.98427858,655.99,655.74,1.355]
[1750133858062,0.98427858,656.07,655.74,1.355]
[1750133858360,0.98427858,656.06,655.74,1.355]
[1750133858559,0.2652894,656.09,655.74,1.355]
[1750133858560,0.98427858,656.05,655.74,1.355]
[1750133858762,0.98427858,656.04,655.74,1.355]
[1750133858961,0.98427858,656.03,655.74,1.355]
[1750133859159,0.98427858,656.02,655.74,1.355]
[1750133859359,0.98427858,656.01,655.74,1.355]
[1750133859563,0.98427858,656.0,655.74,1.355]
[1750133859760,0.98427858,655.99,655.74,1.355]
[1750133860065,0.98427858,655.98,655.74,1.355]
[1750133860364,0.98427858,655.97,655.75,0.85]
[1750133860972,1.14045047,656.08,655.75,0.85]
[1750133861767,1.14045047,656.07,655.75,0.85]
[1750133862570,1.14045047,656.06,655.75,0.85]
[1750133862966,1.14045047,656.07,655.75,0.85]
[1750133863168,1.14045047,656.06,655.75,0.85]
[1750133863570,0.98515815,656.05,655.75,0.85]
[1750133863868,0.98515815,656.04,655.75,0.85]
[1750133864066,0.98515815,656.03,655.75,0.85]
[1750133864270,0.98515815,656.02,655.75,0.85]
[1750133864471,0.98515815,656.01,655.75,0.85]
[1750133864669,0.98515815,656.0,655.75,0.85]
[1750133864868,0.98515815,655.99,655.75,0.85]
[1750133865071,0.98515815,655.98,655.75,0.85]
[1750133865316,0.98515815,655.97,655.75,0.85]
[1750133865562,0.98515815,655.96,655.75,0.85]
[1750133865687,0.98515815,655.95,655.75,0.85]
[1750133865869,0.98515815,655.94,655.75,0.85]
[1750133866073,0.98515815,655.93,655.75,0.85]
[1750133866274,0.98515815,655.92,655.75,0.85]
[1750133866569,1.49554336,656.05,655.75,0.85]
[1750133866774,0.98515815,656.04,655.75,0.85]
[1750133867073,0.98515815,656.03,655.75,0.85]
[1750133867270,0.98515815,656.02,655.75,0.85]
[1750133867469,0.98515815,656.01,655.75,0.85]
[1750133867668,0.98515815,656.0,655.75,0.85]
[1750133867969,0.98515815,655.99,655.75,0.85]
[1750133868170,0.98515815,655.98,655.75,0.85]
[1750133868370,0.98515815,655.97,655.75,0.85]
[1750133868571,0.98515815,655.96,655.75,0.85]
[1750133868774,0.98515815,655.95,655.75,0.85]
[1750133868972,0.98515815,655.94,655.75,0.85]
[1750133869170,0.98509408,655.93,655.75,0.85]
[1750133869470,0.98509408,655.92,655.75,0.85]
[1750133869673,0.98509408,656.0,655.75,0.85]
[1750133869971,0.98509408,655.99,655.75,0.85]
[1750133870169,0.98509408,655.98,655.75,0.85]
[1750133870473,0.98509408,655.97,655.75,0.85]
[1750133870673,0.98509408,655.96,655.75,0.85]
[1750133870873,0.51041658,656.04,655.75,0.85]
[1750133870874,0.98509408,655.95,655.75,0.85]
[1750133871074,0.98511753,655.94,655.75,0.85]
[1750133871272,0.98511753,655.93,655.75,0.85]
[1750133871472,0.98511753,655.92,655.75,0.85]
[1750133871775,0.98511753,655.91,655.76,1.275]
[1750133872074,0.98512437,656.03,655.76,1.275]
[1750133872269,0.98512437,656.02,655.76,1.275]
[1750133872472,0.98512437,656.01,655.76,1.275]
[1750133872674,0.98512437,656.0,655.76,1.275]
[1750133872869,0.98512437,655.99,655.76,1.275]
[1750133873071,0.98512437,655.98,655.76,1.275]
[1750133873276,0.98512437,655.97,655.76,1.275]
[1750133873575,0.98512437,655.96,655.76,1.275]
[1750133873773,0.98512437,655.95,655.76,1.275]
[1750133873971,0.98512437,655.94,655.76,1.275]
[1750133874176,0.98512437,655.93,655.76,1.275]
[1750133874372,0.98512437,655.92,655.76,1.275]
[1750133874574,0.98512437,655.91,655.76,1.275]
[1750133874873,0.9851649,656.03,655.76,1.275]
[1750133875076,0.9851649,656.02,655.76,1.275]
[1750133875277,0.9851649,656.01,655.76,1.275]
[1750133875573,0.9851649,656.0,655.76,1.275]
[1750133875877,0.51044442,656.04,655.76,1.275]
[1750133875878,0.9851649,655.99,655.76,1.275]
[1750133876078,0.9851649,655.98,655.76,1.275]
[1750133876278,0.9851649,655.97,655.76,1.275]
[1750133876579,0.9851649,655.96,655.76,1.275]
[1750133876774,0.9851649,655.95,655.76,1.275]
[1750133876977,0.9851649,655.94,655.76,1.275]
[1750133877179,0.9851649,655.93,655.76,1.275]
[1750133877376,0.9851649,655.92,655.76,1.275]
[1750133877576,0.9851649,655.91,655.76,1.275]
[1750133877777,0.98519607,655.9,655.76,1.275]
[1750133877975,0.98519607,655.89,655.76,1.275]
[1750133878179,0.98519607,655.88,655.76,1.275]
[1750133878376,0.98519607,656.01,655.76,1.275]
[1750133878581,0.98519607,656.0,655.76,1.275]
[1750133878882,0.98519607,655.99,655.76,1.275]
[1750133879183,1.14045047,655.97,655.76,1.275]
[1750133879483,1.14045047,655.93,655.76,1.275]
[1750133879678,0.98519607,655.92,655.76,1.275]
[1750133879980,0.98519607,655.91,655.76,1.275]
[1750133880182,0.98519607,655.9,655.76,1.275]
[1750133880382,0.98519607,655.89,655.76,1.275]
[1750133880678,0.98510073,655.88,655.76,1.275]
[1750133880881,0.98510073,655.87,655.76,1.275]
[1750133881082,0.98508915,655.86,655.76,1.275]
[1750133881278,0.98508915,655.85,655.76,1.275]
[1750133881479,0.98508915,655.84,655.76,1.275]
[1750133881683,0.98508915,655.83,655.76,1.275]
[1750133881882,0.98508915,655.82,655.76,1.275]
[1750133882083,0.98508915,655.93,655.76,1.275]
[1750133882278,0.98508915,655.92,655.76,1.275]
[1750133882484,0.98508915,655.91,655.76,1.275]
[1750133882785,0.98508915,655.9,655.76,1.275]
[1750133883083,0.98508915,655.89,655.76,1.275]
[1750133883281,1.14025361,655.93,655.76,1.275]
[1750133883580,0.98468046,655.92,655.76,1.275]
[1750133883783,0.98468046,655.91,655.76,1.275]
[1750133884083,0.98468046,655.9,655.76,1.275]
[1750133884280,0.98468046,655.89,655.76,1.275]
[1750133884479,0.51019387,655.92,655.76,1.275]
[1750133884480,0.98468046,655.88,655.76,1.275]
[1750133884678,0.98468046,655.87,655.76,1.275]
[1750133884882,0.98468046,655.86,655.76,1.275]
[1750133885080,0.98468046,655.85,655.76,1.275]
[1750133885284,0.98468046,655.84,655.76,1.275]
[1750133885484,0.98468046,655.92,655.76,1.275]
[1750133885680,0.98468046,655.91,655.76,1.275]
[1750133885982,0.98468046,655.9,655.76,1.275]
[1750133886181,0.98449362,655.89,655.76,1.275]
[1750133886383,0.98449362,655.88,655.76,1.275]
[1750133886582,0.98449362,655.87,655.76,1.275]
[1750133886785,0.98449362,655.86,655.76,1.275]
[1750133886985,0.98449362,655.96,655.76,1.275]
[1750133887187,0.98449362,655.95,655.76,1.275]
[1750133887486,0.98449362,655.94,655.76,1.275]
[1750133887785,0.2652894,656.09,655.76,1.275]
[1750133887786,0.98449362,655.93,655.76,1.275]
[1750133887982,0.98449362,655.92,655.76,1.275]
[1750133888285,0.98449362,655.91,655.76,1.275]
[1750133888583,0.98449362,656.01,655.76,1.275]
[1750133888885,0.9844949,656.0,655.76,1.275]
[1750133889083,0.9844949,655.99,655.76,1.275]
[1750133889286,0.9844949,655.98,655.76,1.275]
[1750133889586,0.9844949,655.97,655.76,1.275]
[1750133889785,0.9844949,655.96,655.76,1.275]
[1750133889985,0.98450005,655.95,655.76,1.275]
[1750133890182,0.98450005,655.94,655.76,1.275]
[1750133890382,0.98450005,655.93,655.76,1.275]
[1750133890584,0.98450005,655.92,655.76,1.275]
[1750133890781,0.98450005,656.02,655.75,0.85]
[1750133890988,0.98450005,656.01,655.75,0.85]
[1750133891186,0.98450005,656.0,655.75,0.85]
[1750133891386,0.98450005,655.99,655.75,0.85]
[1750133891590,0.98450005,655.98,655.75,0.85]
[1750133891790,0.98442681,655.97,655.75,0.85]
[1750133891989,0.98442681,655.96,655.75,0.85]
[1750133892189,0.98442681,655.95,655.75,0.85]
[1750133892489,0.98442681,655.94,655.75,0.85]
[1750133892791,0.98442681,655.93,655.75,0.85]
[1750133893090,0.98442681,655.92,655.76,1.318]
[1750133893386,0.98442681,655.91,655.76,1.318]
[1750133893687,0.98442681,656.01,655.76,1.318]
[1750133893990,0.98442681,656.0,655.76,1.318]
[1750133894186,0.98442681,655.99,655.76,1.318]
[1750133894390,0.98442681,655.98,655.76,1.318]
[1750133894685,0.98442681,655.97,655.76,1.318]
[1750133894885,0.98442681,655.96,655.76,1.318]
[1750133895491,1.14025361,656.04,655.76,1.318]
[1750133897592,1.14025361,656.05,655.76,1.318]
[1750133900098,1.14025361,656.04,655.76,1.318]
[1750133900398,1.14025361,656.03,655.76,1.318]
[1750133900592,1.14025361,656.04,655.76,1.318]
[1750133902493,1.14025361,656.03,655.76,1.318]
[1750133905494,1.14025361,656.02,655.76,1.318]
[1750133906601,1.14025361,656.02,655.77,0.999]
[1750133907502,1.14025361,655.97,655.77,0.999]
[1750133908597,1.14025361,655.96,655.77,0.999]
[1750133910197,1.14025361,655.95,655.77,0.999]
[1750133910402,1.14025361,655.94,655.77,0.999]
[1750133910602,1.14025361,655.93,655.77,0.999]
[1750133911597,1.14025361,655.92,655.77,0.999]
[1750133913500,1.14025361,655.92,655.78,0.971]
[1750133914708,1.14025361,655.9,655.78,0.971]
[1750133914903,1.14025361,655.91,655.78,0.971]
[1750133915309,1.14025361,655.9,655.78,0.971]
[1750133916605,0.2652894,656.09,655.78,0.971]
[1750133927714,0.2652894,656.09,655.79,1.075]
[1750133931218,0.2652894,656.09,655.8,1.127]
[1750133941530,0.2652894,656.09,655.81,0.923]
[1750133944228,0.2652894,656.09,655.81,2.472]
[1750133946434,1.14248821,655.95,655.81,2.472]
[1750133946632,1.14248821,655.94,655.81,2.472]
[1750133948230,1.14248821,655.92,655.81,2.472]
[1750133949234,1.14248821,655.94,655.81,2.472]
[1750133949835,1.14248821,655.93,655.81,2.472]
[1750133951031,0.50897374,655.92,655.81,2.472]
[1750133951334,0.50897374,655.91,655.81,2.472]
[1750133951533,0.50897374,655.9,655.81,2.472]
[1750133951736,0.50897374,655.92,655.81,2.472]
[1750133951936,0.50897374,655.91,655.81,2.472]
[1750133952131,0.50897374,655.92,655.81,2.472]
[1750133952337,0.50897374,655.94,655.81,2.472]
[1750133952533,1.14248821,655.99,655.81,2.472]
[1750133952733,0.50897374,655.98,655.81,2.472]
[1750133952939,0.50897374,655.97,655.81,2.472]
[1750133953237,0.50897374,655.98,655.81,2.472]
[1750133953437,0.50897374,655.97,655.81,2.472]
[1750133953638,0.50897374,655.98,655.81,2.472]
[1750133953833,0.50897374,655.97,655.81,2.472]
[1750133954038,0.50897374,655.96,655.81,2.472]
[1750133954337,1.65146195,655.95,655.81,2.472]
[1750133954537,0.50897374,655.94,655.81,2.472]
[1750133954733,0.50897374,655.93,655.81,2.472]
[1750133954939,0.50897374,655.92,655.81,2.472]
[1750133955140,1.14248821,655.96,655.81,2.472]
[1750133955141,0.50897374,655.91,655.81,2.472]
[1750133955335,0.50897374,655.95,655.81,2.472]
[1750133955639,0.50897374,655.94,655.81,2.472]
[1750133955936,0.50897374,655.93,655.81,2.472]
[1750133956134,1.14248821,655.96,655.81,2.472]
[1750133956135,0.50897374,655.92,655.81,2.472]
[1750133956340,0.50897374,655.95,655.81,0.923]
[1750133956535,0.50897374,655.94,655.81,0.923]
[1750133956739,0.50897374,655.93,655.81,0.923]
[1750133957038,0.50897374,655.92,655.81,0.923]
[1750133957238,1.14248821,655.96,655.81,0.923]
[1750133957239,0.50897374,655.95,655.81,0.923]
[1750133957439,0.50897374,655.94,655.81,0.923]
[1750133957636,0.50897374,655.93,655.81,0.923]
[1750133957939,0.50897374,655.92,655.81,0.923]
[1750133958133,0.50897374,655.95,655.81,0.923]
[1750133958337,0.50897374,655.94,655.81,0.923]
[1750133958538,0.50897374,655.93,655.81,0.923]
[1750133958733,0.50995183,655.92,655.81,0.923]
[1750133958937,0.50995183,655.95,655.81,0.923]
[1750133959135,0.50995183,655.94,655.81,0.923]
[1750133959338,0.50995183,655.93,655.81,0.923]
[1750133959537,0.50995183,655.95,655.81,0.923]
[1750133959742,0.50995183,655.94,655.78,1.376]
[1750133959941,0.50995183,655.93,655.78,1.376]
[1750133960236,0.50995183,655.95,655.78,1.376]
[1750133960437,0.50995183,655.94,655.78,1.376]
[1750133960640,0.50995183,655.93,655.78,1.376]
[1750133960941,0.50995183,655.95,655.78,1.376]
[1750133961141,0.50995183,655.94,655.78,1.376]
[1750133961338,0.50995183,655.93,655.78,1.376]
[1750133961538,0.50995183,655.95,655.79,1.303]
[1750133961739,0.50995183,655.94,655.79,1.303]
[1750133961938,0.50995183,655.93,655.79,1.303]
[1750133962242,0.50995183,655.92,655.79,1.303]
[1750133962442,0.50995183,655.95,655.79,1.303]
[1750133962643,1.14248821,656.0,655.79,1.303]
[1750133962945,0.50995183,655.99,655.79,1.303]
[1750133963139,0.50995183,655.98,655.79,1.303]
[1750133963338,0.50995183,655.99,655.79,1.303]
[1750133963542,0.50995183,655.98,655.79,1.303]
[1750133963738,0.50995183,655.99,655.79,1.303]
[1750133963940,0.50995183,655.98,655.79,1.303]
[1750133964142,0.50995183,655.99,655.79,1.303]
[1750133964343,0.50995183,655.98,655.79,1.303]
[1750133964540,0.50995183,655.99,655.79,1.303]
[1750133965140,0.98359016,655.95,655.79,1.303]
[1750133965345,0.98359016,655.94,655.79,1.303]
[1750133965545,0.98359016,655.93,655.79,1.303]
[1750133965742,0.98359016,655.92,655.79,1.303]
[1750133965942,0.98359016,655.91,655.79,1.303]
[1750133966246,0.98359016,655.9,655.79,1.303]
[1750133966442,0.98359016,655.89,655.79,1.303]
[1750133966640,0.98359016,655.88,655.79,1.303]
[1750133966845,0.98359016,655.87,655.79,1.303]
[1750133967140,0.98359016,655.86,655.79,1.303]
[1750133967344,0.98359016,655.85,655.79,1.303]
[1750133967544,0.98517463,655.84,655.79,1.303]
[1750133967841,0.98517463,655.83,655.79,1.303]
[1750133968042,0.98517463,655.96,655.79,1.303]
[1750133968243,0.98517463,655.95,655.79,1.303]
[1750133968442,0.98517463,655.94,655.79,1.303]
[1750133968747,0.98517463,655.93,655.79,1.303]
[1750133968942,0.98517463,655.92,655.79,1.303]
[1750133969142,0.98517463,655.91,655.79,1.303]
[1750133969444,0.98517463,655.9,655.79,1.303]
[1750133969645,0.98517463,655.89,655.79,1.303]
[1750133969942,0.50978837,655.98,655.79,1.303]
[1750133969943,0.98517463,655.88,655.79,1.303]
[1750133970243,0.98517463,655.87,655.79,1.303]
[1750133970441,0.98517463,655.86,655.79,1.303]
[1750133970645,0.98517463,655.85,655.79,1.303]
[1750133970842,0.98517463,655.84,655.79,1.303]
[1750133971046,0.98517463,655.98,655.79,1.303]
[1750133971244,0.98511089,655.97,655.79,1.303]
[1750133971444,0.98511089,655.96,655.79,1.303]
[1750133971648,0.98511089,655.95,655.79,1.303]
[1750133971848,0.98511089,655.94,655.79,1.303]
[1750133972050,0.98511089,655.93,655.79,1.303]
[1750133972348,0.98511089,655.92,655.79,1.303]
[1750133972549,0.98511089,655.91,655.79,1.303]
[1750133972746,0.98511089,655.9,655.79,1.303]
[1750133973045,0.98511089,655.89,655.79,1.303]
[1750133973246,0.98511089,655.88,655.79,1.303]
[1750133973448,0.98511089,655.87,655.79,1.303]
[1750133973648,0.98511089,655.86,655.79,1.303]
[1750133973848,0.98511089,655.85,655.79,1.303]
[1750133974049,0.98511089,655.84,655.79,1.303]
[1750133974346,0.98511089,655.83,655.79,1.303]
[1750133974544,0.98511089,655.82,655.79,1.303]
[1750133974748,1.49485624,655.96,655.79,1.303]
[1750133975052,0.98511089,655.95,655.79,1.303]
[1750133975348,0.98511089,655.94,655.79,1.303]
[1750133975548,0.50974535,655.96,655.79,1.303]
[1750133975549,0.98511089,655.93,655.79,1.303]
[1750133975749,0.98511089,655.92,655.79,1.303]
[1750133975945,0.98511089,655.91,655.79,1.303]
[1750133976250,0.98511089,655.9,655.79,1.303]
[1750133976546,1.14248821,655.98,655.79,1.303]
[1750133976547,0.98511089,655.89,655.79,1.303]
[1750133976745,0.98511089,655.88,655.79,1.303]
[1750133976945,0.98504601,655.87,655.79,1.303]
[1750133977144,0.98504601,655.86,655.79,1.303]
[1750133977349,0.98504601,655.85,655.79,1.303]
[1750133977550,0.98504601,655.84,655.79,1.303]
[1750133977748,0.98504601,655.83,655.79,1.303]
[1750133978044,0.98504601,655.82,655.79,1.303]
[1750133978249,0.98504601,655.81,655.79,1.303]
[1750133978445,1.49477757,655.95,655.79,1.303]
[1750133978652,0.98504601,655.94,655.79,1.303]
[1750133978852,0.98504601,655.93,655.79,1.303]
[1750133979050,0.98504601,655.92,655.79,1.303]
[1750133979246,0.98504601,655.91,655.79,1.303]
[1750133979550,0.98504601,655.9,655.79,1.303]
[1750133979750,0.98504601,655.89,655.79,1.303]
[1750133979947,0.50971875,655.95,655.79,1.303]
[1750133979948,0.98504601,655.88,655.79,1.303]
[1750133980154,0.98504601,655.87,655.79,1.303]
[1750133980447,0.98504601,655.86,655.79,1.303]
[1750133980651,0.98504601,655.85,655.79,1.303]
[1750133980847,0.50971875,655.96,655.79,1.303]
[1750133980848,0.98504601,655.84,655.79,1.303]
[1750133981052,0.98504601,655.83,655.79,1.303]
[1750133981252,0.98504601,655.82,655.79,1.303]
[1750133981449,0.98504601,655.81,655.79,1.303]
[1750133981750,1.49476476,655.94,655.79,1.303]
[1750133981949,0.98504601,655.93,655.79,1.303]
[1750133982251,0.98504601,655.92,655.79,1.303]
[1750133982452,0.98504601,655.91,655.79,1.303]
[1750133982650,0.98504601,655.9,655.79,1.303]
[1750133982853,0.98500837,655.89,655.79,1.303]
[1750133983153,0.98500837,655.88,655.79,1.303]
[1750133983347,0.98500837,655.87,655.79,1.303]
[1750133983550,0.98500837,655.86,655.79,1.303]
[1750133983751,0.98500837,655.85,655.79,1.303]
[1750133983953,0.98500837,655.84,655.79,1.303]
[1750133984150,0.98500837,655.83,655.79,1.303]
[1750133984353,0.98500837,655.82,655.79,1.303]
[1750133984551,0.98500837,655.81,655.79,1.303]
[1750133984854,1.49482624,655.95,655.79,1.303]
[1750133985051,1.49482624,655.94,655.79,1.303]
[1750133985254,0.98500837,655.93,655.79,1.303]
[1750133985550,1.14189911,655.96,655.79,1.303]
[1750133985750,1.49477947,655.95,655.79,1.303]
[1750133985956,1.49477947,655.94,655.79,1.303]
[1750133986158,1.49477947,655.93,655.79,1.303]
[1750133986358,0.9849783,655.92,655.79,1.303]
[1750133986559,0.9849783,655.91,655.79,1.303]
[1750133986859,0.9849783,655.9,655.79,1.303]
[1750133987159,0.9849783,655.89,655.79,1.303]
[1750133987355,0.9849783,655.88,655.79,1.303]
[1750133987653,0.9849783,655.87,655.79,1.303]
[1750133987858,0.9849783,655.86,655.79,1.303]
[1750133988155,0.9849783,655.85,655.79,1.303]
[1750133988460,0.98498533,655.84,655.79,1.303]
[1750133988658,0.98498533,655.83,655.79,1.303]
[1750133988855,0.98498533,655.82,655.79,1.303]
[1750133989059,0.98498533,655.81,655.79,1.303]
[1750133989259,0.98498533,655.8,655.79,1.303]
[1750133991666,0.98498533,655.8,655.78,1.376]
[1750133991866,0.98498533,655.79,655.78,1.376]
[1750133993863,1.14189911,655.9,655.78,1.376]
[1750133994066,0.98431461,655.89,655.78,1.376]
[1750133994267,0.98431461,655.88,655.78,1.376]
[1750133994466,0.98431461,655.87,655.78,1.376]
[1750133994663,0.98431461,655.86,655.78,1.376]
[1750133994867,0.98431461,655.85,655.78,1.376]
[1750133995061,0.98431461,655.84,655.78,1.376]
[1750133995264,0.98431461,655.83,655.78,1.376]
[1750133995467,0.98431461,655.82,655.65,1.112]
[1750133995665,0.98431461,655.81,655.65,1.112]
[1750133995868,0.98431461,655.8,655.65,1.112]
[1750133996071,0.98431461,655.79,655.65,1.112]
[1750133996369,0.98431461,655.78,655.65,1.112]
[1750133996569,0.98431461,655.77,655.65,1.112]
[1750133996866,0.98392538,655.76,655.65,1.112]
[1750133997070,0.98392538,655.75,655.65,1.112]
[1750133997265,0.98392538,655.74,655.65,1.112]
[1750133997467,0.98392538,655.73,655.65,1.112]
[1750133997665,0.98392538,655.72,655.65,1.112]
[1750133997869,0.98392538,655.71,655.65,1.112]
[1750133998167,0.98392538,655.7,655.65,1.112]
[1750133998366,0.98392538,655.69,655.65,1.112]
[1750133998568,0.98392538,655.81,655.65,1.112]
[1750133998765,0.98392538,655.8,655.65,1.112]
[1750133998967,0.98392538,655.79,655.65,1.112]
[1750133999174,0.98392538,655.82,655.65,1.112]
[1750133999469,0.26538246,655.85,655.65,1.112]
[1750133999668,0.98374547,655.84,655.65,1.112]
[1750133999968,0.26538246,655.85,655.65,1.112]
[1750134000177,0.98374547,655.97,655.65,1.112]
[1750134000369,0.98374547,655.96,655.65,1.112]
[1750134000569,0.26534502,655.92,655.65,1.112]
[1750134000872,0.98374547,655.91,655.65,1.112]
[1750134001169,0.98228401,655.9,655.65,1.112]
[1750134001374,0.98228401,655.89,655.65,1.112]
[1750134001573,0.98228401,655.88,655.65,1.112]
[1750134001873,0.98228401,655.87,655.65,1.112]
[1750134002070,1.14189911,656.01,655.65,1.112]
[1750134002272,0.98222373,656.0,655.65,1.112]
[1750134002468,0.26534199,655.93,655.65,1.112]
[1750134002674,0.98222373,655.92,655.66,0.932]
[1750134002871,0.98222373,655.91,655.66,0.932]
[1750134003070,0.98222373,655.9,655.66,0.932]
[1750134003272,0.98222373,655.89,655.66,0.932]
[1750134003475,0.98222373,655.88,655.66,0.932]
[1750134003672,0.98222373,655.87,655.66,0.932]
[1750134003877,0.98222373,655.86,655.66,0.932]
[1750134004074,0.98222373,655.92,655.66,0.932]
[1750134004275,0.98222373,655.91,655.66,0.932]
[1750134004480,0.98222373,655.9,655.66,0.932]
[1750134004683,0.98222373,655.89,655.66,0.932]
[1750134004881,0.98222373,655.88,655.66,0.932]
[1750134005081,0.98204564,655.87,655.66,0.932]
[1750134005277,0.98204564,655.92,655.66,0.932]
[1750134005477,0.98204564,655.91,655.66,0.932]
[1750134005777,0.98204564,655.9,655.66,0.932]
[1750134005984,0.98204564,655.89,655.66,0.932]
[1750134006279,0.98204564,655.88,655.66,0.932]
[1750134006583,2.12394475,655.87,655.66,0.932]
[1750134006781,1.49107084,655.86,655.66,0.932]
[1750134006984,1.49107084,655.87,655.66,0.932]
[1750134007280,2.63296995,655.87,655.66,0.932]
[1750134007580,1.49107084,655.86,655.66,0.932]
[1750134007779,0.5090252,655.86,655.66,0.932]
[1750134007978,1.14189911,655.87,655.66,0.932]
[1750134008878,2.63289874,655.87,655.66,0.932]
[1750134009179,1.14189911,655.85,655.66,0.932]
[1750134009382,0.98197496,655.84,655.66,0.932]
[1750134009583,1.49100016,655.84,655.66,0.932]
[1750134010680,1.14189911,655.85,655.66,0.932]
[1750134011380,1.14189911,655.83,655.66,0.932]
[1750134011579,2.12383484,655.83,655.66,0.932]
[1750134011780,1.49092357,655.82,655.66,0.932]
[1750134011986,0.50898784,655.82,655.66,0.932]
[1750134012281,1.14189911,655.83,655.66,0.932]
[1750134015681,2.6327089,655.83,655.66,0.932]
[1750134015885,1.49080979,655.82,655.66,0.932]
[1750134016380,0.98173861,655.82,655.66,0.932]
[1750134016581,0.51779613,655.82,655.66,0.932]
[1750134016882,1.14189911,655.83,655.66,0.932]
[1750134018484,1.14189911,655.82,655.66,0.932]
[1750134018884,1.65969524,655.82,655.66,0.932]